fUSD/lending_fUSD_20240222
["ID","MTS","AMOUNT","RATE_DAILY","PERIOD"]
[314813416,1708565441868,-500.0,0.00035616,2]
[314813417,1708565441878,-775.51,0.00035616,2]
[314813418,1708565441888,-500.0,0.00035616,2]
[314813419,1708565441897,-3741.53,0.00035616,2]
[314813420,1708565441906,-562.5,0.00035616,2]
[314813421,1708565441916,-500.0,0.00035616,2]
[314813422,1708565441925,-500.0,0.00035616,2]
[314813423,1708565441935,-1758.43,0.00035616,2]
[314813424,1708565441944,-500.0,0.00035616,2]
[314813425,1708565441954,-500.0,0.00035616,2]
[314813426,1708565441963,-500.0,0.00035616,2]
[314813427,1708565441973,-500.0,0.00035616,2]
[314813428,1708565441982,-500.0,0.00035616,2]
[314813429,1708565441992,-1819.11,0.00035616,2]
[314813430,1708565442001,-1258.99,0.00035616,2]
[314813431,1708565442011,-1909.82,0.00035616,2]
[314813432,1708565442020,-2571.1,0.00035616,2]
[314813433,1708565442029,-5460.87,0.00035616,2]
[314813434,1708565442038,-500.0,0.00035616,2]
[314813435,1708565442047,-500.0,0.00035616,2]
[314813436,1708565442057,-1768.74,0.00035616,2]
[314813437,1708565442066,-254.98598581,0.00035616,2]
[314813438,1708565442076,-819.71,0.00035616,2]
[314813439,1708565442085,-550.74,0.00035616,2]
[314813440,1708565442094,-500.0,0.00035616,2]
[314813441,1708565442103,-500.0,0.00035616,2]
[314813442,1708565442113,-500.0,0.00035616,2]
[314813443,1708565442122,-500.0,0.00035616,2]
[314813444,1708565442131,-500.0,0.00035616,2]
[314813445,1708565442140,-500.0,0.00035616,2]
[314813446,1708565442149,-22379.01,0.00035616,2]
[314813447,1708565442158,-500.0,0.00035616,2]
[314813448,1708565442167,-2098.58,0.00035616,2]
[314813449,1708565442176,-500.0,0.00035616,2]
[314813450,1708565442185,-1470.77,0.00035616,2]
[314813451,1708565442194,-500.0,0.00035616,2]
[314813452,1708565442203,-500.0,0.00035616,2]
[314813453,1708565442212,-537.16,0.00035616,2]
[314813454,1708565442221,-1771.69,0.00035616,2]
[314813455,1708565442230,-1000.0,0.00035616,7]
[314813456,1708565442239,-5776.09,0.00035616,2]
[314813457,1708565442248,-3395.47,0.00035616,2]
[314813459,1708565442257,-500.0,0.00035616,2]
[314813461,1708565442266,-500.0,0.00035616,2]
[314813463,1708565442275,-500.0,0.00035616,2]
[314813464,1708565442285,-500.0,0.00035616,2]
[314813465,1708565442293,-979.14,0.00035616,2]
[314813466,1708565442303,-500.0,0.00035616,2]
[314813467,1708565442312,-500.0,0.00035616,2]
[314813468,1708565442321,-500.0,0.00035616,2]
[314813469,1708565442330,-500.0,0.00035616,2]
[314813470,1708565442340,-500.0,0.00035616,2]
[314813471,1708565442349,-1748.94,0.00035616,2]
[314813472,1708565442358,-500.0,0.00035616,2]
[314813473,1708565442367,-166.92873117,0.00035616,2]
[314813474,1708565442376,-1070.4,0.00035616,2]
[314813475,1708565442386,-500.0,0.00035616,2]
[314813476,1708565442395,-3275.34,0.00035616,2]
[314813477,1708565442404,-500.0,0.00035616,2]
[314813478,1708565442413,-500.0,0.00035616,2]
[314813479,1708565442423,-500.0,0.00035616,2]
[314813480,1708565442433,-2598.16,0.00035616,2]
[314813481,1708565442442,-500.0,0.00035616,2]
[314813482,1708565442451,-3896.58,0.00035616,2]
[314813483,1708565442461,-967.22,0.00035616,2]
[314813484,1708565442469,-500.0,0.00035616,2]
[314813485,1708565442478,-500.0,0.00035616,2]
[314813486,1708565442488,-501.26,0.00035616,2]
[314813487,1708565442497,-1427.66,0.00035616,2]
[314813488,1708565442506,-500.0,0.00035616,2]
[314813489,1708565442515,-500.0,0.00035616,2]
[314813490,1708565442524,-500.0,0.00035616,2]
[314813491,1708565442533,-3613.56,0.00035616,2]
[314813492,1708565442543,-753.32,0.00035616,2]
[314813493,1708565442552,-9350.36,0.00035616,2]
[314813494,1708565442562,-500.0,0.00035616,2]
[314813495,1708565442571,-765.37,0.00035616,2]
[314813496,1708565442580,-13851.54,0.00035616,2]
[314813497,1708565442589,-500.0,0.00035616,2]
[314813498,1708565442598,-2124.68,0.00035616,2]
[314813499,1708565442607,-594.87,0.00035616,2]
[314813500,1708565442616,-500.0,0.00035616,2]
[314813501,1708565442625,-1172.22,0.00035616,2]
[314813502,1708565442634,-801.26,0.00035616,2]
[314813503,1708565442643,-500.0,0.00035616,2]
[314813504,1708565442652,-510.58,0.00035616,2]
[314813505,1708565442661,-3580.79,0.00035616,2]
[314813506,1708565442669,-500.0,0.00035616,2]
[314813507,1708565442678,-500.0,0.00035616,2]
[314813508,1708565442687,-5042.12,0.00035616,2]
[314813509,1708565442696,-953.22,0.00035616,2]
[314813510,1708565442705,-500.0,0.00035616,2]
[314813511,1708565442714,-669.3,0.00035616,2]
[314813512,1708565442725,-4698.86,0.00035616,2]
[314813513,1708565442734,-500.0,0.00035616,2]
[314813514,1708565442743,-877.21,0.00035616,2]
[314813515,1708565442751,-500.0,0.00035616,2]
[314813516,1708565442761,-501.90531653,0.00035616,2]
[314813517,1708565442770,-500.0,0.00035616,2]
[314813518,1708565442779,-506.69,0.00035616,2]
[314813519,1708565442788,-569.66519339,0.00035616,2]
[314813520,1708565442796,-732.81,0.00035616,2]
[314813521,1708565442807,-430.74350655,0.00035616,2]
[314813522,1708565442816,-500.0,0.00035616,2]
[314813523,1708565442825,-500.0,0.00035616,2]
[314813524,1708565442834,-608.19,0.00035616,2]
[314813525,1708565442843,-2009.18,0.00035616,2]
[314813526,1708565442852,-7311.54,0.00035616,2]
[314813527,1708565442860,-500.0,0.00035616,2]
[314813528,1708565442869,-500.0,0.00035616,2]
[314813529,1708565442878,-1508.13,0.00035616,2]
[314813530,1708565442887,-682.32,0.00035616,2]
[314813531,1708565442896,-500.0,0.00035616,2]
[314813532,1708565442905,-1423.26,0.00035616,2]
[314813533,1708565442913,-503.76354408,0.00035616,2]
[314813534,1708565442922,-1920.24,0.00035616,2]
[314813535,1708565442931,-511.81768729,0.00035616,2]
[314813536,1708565442939,-500.0,0.00035616,2]
[314813537,1708565442948,-534.36,0.00035616,2]
[314813538,1708565442957,-500.0,0.00035616,2]
[314813539,1708565442966,-1348.34,0.00035616,2]
[314813540,1708565442975,-510.24489245,0.00035616,2]
[314813541,1708565442983,-500.0,0.00035616,2]
[314813542,1708565442992,-500.0,0.00035616,2]
[314813543,1708565443001,-1221.63,0.00035616,2]
[314813544,1708565443010,-500.0,0.00035616,2]
[314813545,1708565443019,-1801.67,0.00035616,2]
[314813546,1708565443028,-500.0,0.00035616,2]
[314813547,1708565443036,-500.0,0.00035616,2]
[314813548,1708565443045,-1430.57,0.00035616,2]
[314813549,1708565443055,-515.71070518,0.00035616,2]
[314813550,1708565443064,-2209.35,0.00035616,2]
[314813551,1708565443073,-1051.33,0.00035616,2]
[314813552,1708565443081,-500.0,0.00035616,2]
[314813553,1708565443090,-1647.29,0.00035616,2]
[314813554,1708565443099,-500.0,0.00035616,2]
[314813555,1708565443108,-500.0,0.00035616,2]
[314813556,1708565443117,-500.0,0.00035616,2]
[314813557,1708565443126,-1469.66,0.00035616,2]
[314813558,1708565443135,-1592.91,0.00035616,2]
[314813559,1708565443143,-500.0,0.00035616,2]
[314813560,1708565443152,-541.66,0.00035616,2]
[314813561,1708565443161,-500.0,0.00035616,2]
[314813562,1708565443170,-500.0,0.00035616,2]
[314813563,1708565443178,-500.0,0.00035616,2]
[314813564,1708565443187,-500.0,0.00035616,2]
[314813565,1708565443196,-2529.72,0.00035616,2]
[314813566,1708565443205,-667.63,0.00035616,2]
[314813567,1708565443214,-500.0,0.00035616,2]
[314813568,1708565443222,-1011.33,0.00035616,2]
[314813569,1708565443231,-500.0,0.00035616,2]
[314813570,1708565443240,-5004.46,0.00035616,2]
[314813571,1708565443248,-500.0,0.00035616,2]
[314813572,1708565443257,-3140.46,0.00035616,2]
[314813573,1708565443266,-1324.59,0.00035616,2]
[314813574,1708565443274,-500.0,0.00035616,2]
[314813575,1708565443283,-500.0,0.00035616,2]
[314813576,1708565443292,-1008.92,0.00035616,2]
[314813577,1708565443301,-500.0,0.00035616,2]
[314813578,1708565443310,-1477.53,0.00035616,2]
[314813579,1708565443319,-3849.37,0.00035616,2]
[314813580,1708565443328,-500.0,0.00035616,2]
[314813581,1708565443337,-500.0,0.00035616,2]
[314813582,1708565443346,-500.0,0.00035616,2]
[314813583,1708565443552,-500.0,0.00035616,2]
[314813584,1708565443563,-2532.95,0.00035616,2]
[314813585,1708565443572,-500.0,0.00035616,2]
[314813586,1708565443581,-2994.38,0.00035616,2]
[314813587,1708565443589,-3814.41,0.00035616,2]
[314813588,1708565443598,-1717.61,0.00035616,2]
[314813589,1708565443607,-500.0,0.00035616,2]
[314813590,1708565443615,-822.31,0.00035616,2]
[314813591,1708565443624,-500.0,0.00035616,2]
[314813592,1708565443634,-500.0,0.00035616,2]
[314813593,1708565443643,-500.0,0.00035616,2]
[314813594,1708565443652,-500.0,0.00035616,2]
[314813595,1708565443660,-500.0,0.00035616,2]
[314813596,1708565443669,-500.0,0.00035616,2]
[314813597,1708565443678,-500.0,0.00035616,2]
[314813598,1708565443687,-7108.21,0.00035616,2]
[314813599,1708565443696,-1168.92,0.00035616,2]
[314813600,1708565443704,-500.0,0.00035616,2]
[314813601,1708565443714,-500.0,0.00035616,2]
[314813602,1708565443724,-500.0,0.00035616,2]
[314813603,1708565443735,-500.0,0.00035616,2]
[314813604,1708565443744,-1441.84,0.00035616,2]
[314813605,1708565443753,-500.0,0.00035616,2]
[314813606,1708565443762,-500.0,0.00035616,2]
[314813607,1708565443772,-500.0,0.00035616,2]
[314813608,1708565443781,-1184.97,0.00035616,2]
[314813609,1708565443790,-526.6,0.00035616,2]
[314813610,1708565443799,-500.0,0.00035616,2]
[314813611,1708565443810,-4060.2,0.00035616,2]
[314813612,1708565443819,-620.07,0.00035616,2]
[314813613,1708565443827,-507.06708718,0.00035616,2]
[314813614,1708565443837,-4881.44,0.00035616,2]
[314813615,1708565443846,-3410.14,0.00035616,2]
[314813616,1708565443855,-500.0,0.00035616,2]
[314813617,1708565443864,-503.82884417,0.00035616,2]
[314813618,1708565443873,-3210.93,0.00035616,2]
[314813619,1708565443882,-500.0,0.00035616,2]
[314813620,1708565443891,-1416.3,0.00035616,2]
[314813621,1708565443900,-1041.15,0.00035616,2]
[314813622,1708565443909,-942.84,0.00035616,2]
[314813623,1708565443918,-500.0,0.00035616,2]
[314813624,1708565443927,-500.0,0.00035616,2]
[314813625,1708565443937,-500.0,0.00035616,2]
[314813626,1708565443945,-500.0,0.00035616,2]
[314813627,1708565443955,-500.0,0.00035616,2]
[314813628,1708565443964,-500.0,0.00035616,2]
[314813629,1708565443973,-500.0,0.00035616,2]
[314813630,1708565443982,-550.28210996,0.00035616,2]
[314813631,1708565443991,-500.0,0.00035616,2]
[314813632,1708565444000,-503.31647674,0.00035616,2]
[314813633,1708565444009,-1415.3,0.00035616,2]
[314813634,1708565444018,-500.0,0.00035616,2]
[314813635,1708565444027,-1331.83,0.00035616,2]
[314813636,1708565444036,-500.0,0.00035616,2]
[314813637,1708565444045,-3541.19,0.00035616,2]
[314813638,1708565444055,-500.0,0.00035616,2]
[314813639,1708565444064,-502.41996864,0.00035616,2]
[314813640,1708565444073,-500.0,0.00035616,2]
[314813641,1708565444082,-2948.11,0.00035616,2]
[314813642,1708565444091,-682.87,0.00035616,2]
[314813643,1708565444100,-960.38,0.00035616,2]
[314813644,1708565444109,-500.0,0.00035616,2]
[314813645,1708565444118,-507.17112372,0.00035616,2]
[314813646,1708565444127,-799.54,0.00035616,2]
[314813647,1708565444135,-8508.82,0.00035616,2]
[314813648,1708565444144,-500.0,0.00035616,2]
[314813649,1708565444153,-500.0,0.00035616,2]
[314813650,1708565444162,-500.0,0.00035616,2]
[314813651,1708565444170,-500.0,0.00035616,2]
[314813652,1708565444179,-502.96233748,0.00035616,2]
[314813653,1708565444188,-563.27244868,0.00035616,2]
[314813654,1708565444197,-646.56,0.00035616,2]
[314813655,1708565444206,-1831.45,0.00035616,2]
[314813656,1708565444215,-500.0,0.00035616,2]
[314813657,1708565444224,-502.50894289,0.00035616,2]
[314813658,1708565444233,-20506.82,0.00035616,2]
[314813659,1708565444242,-500.0,0.00035616,2]
[314813660,1708565444251,-1811.78,0.00035616,2]
[314813661,1708565444260,-6793.5,0.00035616,2]
[314813662,1708565444269,-500.0,0.00035616,2]
[314813663,1708565444278,-500.0,0.00035616,2]
[314813664,1708565444287,-500.0,0.00035616,2]
[314813665,1708565444296,-808.16,0.00035616,2]
[314813666,1708565444307,-500.0,0.00035616,2]
[314813667,1708565444316,-250.0,0.00035616,2]
[314813668,1708565444325,-500.0,0.00035616,2]
[314813669,1708565444334,-570.75,0.00035616,2]
[314813670,1708565444344,-500.0,0.00035616,2]
[314813671,1708565444353,-500.0,0.00035616,2]
[314813672,1708565444361,-500.0,0.00035616,2]
[314813673,1708565444370,-500.0,0.00035616,2]
[314813674,1708565444380,-500.0,0.00035616,2]
[314813675,1708565444389,-503.54547426,0.00035616,2]
[314813676,1708565444398,-994.77,0.00035616,2]
[314813677,1708565444407,-500.0,0.00035616,2]
[314813678,1708565444416,-500.0,0.00035616,2]
[314813679,1708565444425,-2073.02267114,0.00035661,7]
[314813680,1708565444435,-813.02265496,0.0003579,2]
[314813681,1708565444445,-1898.97453902,0.0003579,2]
[314813682,1708565444454,-1972.99,0.00035798,2]
[314813683,1708565444463,-1500.0,0.00035812,2]
[314813684,1708565444471,-151.0,0.00035887,30]
[314813685,1708565444480,-500.0,0.0003589,2]
[314813686,1708565444489,-500.0,0.0003589,2]
[314813687,1708565444498,-703.71,0.0003589,2]
[314813688,1708565444507,-500.0,0.0003589,2]
[314813689,1708565444516,-500.0,0.0003589,2]
[314813690,1708565444525,-500.0,0.0003589,2]
[314813691,1708565444535,-771.68,0.0003589,2]
[314813692,1708565444544,-500.0,0.0003589,2]
[314813693,1708565444555,-1413.38,0.0003589,2]
[314813694,1708565444564,-500.0,0.0003589,2]
[314813695,1708565444574,-500.0,0.0003589,2]
[314813696,1708565444583,-500.0,0.0003589,2]
[314813697,1708565444592,-1474.27,0.0003589,2]
[314813698,1708565444600,-500.0,0.0003589,2]
[314813699,1708565444609,-500.0,0.0003589,2]
[314813700,1708565444618,-500.0,0.0003589,2]
[314813701,1708565444627,-2258.48,0.0003589,2]
[314813702,1708565444636,-500.0,0.0003589,2]
[314813703,1708565444644,-1011.9,0.0003589,2]
[314813704,1708565444654,-500.0,0.0003589,2]
[314813705,1708565444663,-1174.59,0.0003589,2]
[314813706,1708565444672,-500.0,0.0003589,2]
[314813707,1708565444681,-500.0,0.0003589,2]
[314813708,1708565444690,-922.17,0.0003589,2]
[314813709,1708565444699,-500.0,0.0003589,2]
[314813710,1708565444708,-8128.73,0.0003589,2]
[314813711,1708565444717,-500.0,0.0003589,2]
[314813712,1708565444727,-501.53698506,0.0003589,2]
[314813713,1708565444736,-500.0,0.0003589,2]
[314813714,1708565444745,-500.0,0.0003589,2]
[314813715,1708565444754,-500.0,0.0003589,2]
[314813716,1708565444763,-707.81,0.0003589,2]
[314813717,1708565444772,-1383.16,0.0003589,2]
[314813718,1708565444781,-500.0,0.0003589,2]
[314813719,1708565444790,-478.1023633,0.0003589,2]
[314813720,1708565444799,-500.0,0.0003589,2]
[314813721,1708565444814,-500.0,0.0003589,2]
[314813722,1708565444822,-500.0,0.0003589,2]
[314813723,1708565444831,-500.0,0.0003589,2]
[314813724,1708565444839,-500.0,0.0003589,2]
[314813725,1708565444849,-500.0,0.0003589,2]
[314813726,1708565444858,-817.98,0.0003589,2]
[314813727,1708565444868,-500.0,0.0003589,2]
[314813728,1708565444877,-1497.95,0.0003589,2]
[314813729,1708565444887,-342.64331517,0.0003589,2]
[314813730,1708565444903,-1803.13,0.0003589,2]
[314813731,1708565444926,-500.0,0.0003589,2]
[314813732,1708565444943,-949.35,0.0003589,2]
[314813733,1708565444964,-643.92,0.0003589,2]
[314813734,1708565444985,-500.0,0.0003589,2]
[314813735,1708565445002,-503.42,0.0003589,2]
[314813736,1708565445031,-3490.13,0.0003589,2]
[314813737,1708565445064,-1601.94,0.0003589,2]
[314813738,1708565445082,-197.50537208,0.0003589,2]
[314813739,1708565445109,-2505.15,0.0003589,2]
[314813740,1708565445128,-500.0,0.0003589,2]
[314813741,1708565445148,-500.0,0.0003589,2]
[314813742,1708565445170,-655.12,0.0003589,2]
[314813743,1708565445190,-614.21464588,0.0003589,2]
[314813744,1708565445203,-500.0,0.0003589,2]
[314813745,1708565445219,-2355.29,0.0003589,2]
[314813746,1708565445238,-500.0,0.0003589,2]
[314813747,1708565445253,-526.91558944,0.0003589,2]
[314813748,1708565445268,-500.0,0.0003589,2]
[314813749,1708565445284,-1228.39,0.0003589,2]
[314813750,1708565445301,-946.92,0.0003589,2]
[314813751,1708565445324,-564.00722072,0.0003589,2]
[314813752,1708565445340,-931.21,0.0003589,2]
[314813753,1708565445357,-500.0,0.0003589,2]
[314813754,1708565445372,-500.0,0.0003589,2]
[314813756,1708565445387,-500.0,0.0003589,2]
[314813759,1708565445402,-281.77321038,0.0003589,2]
[314813762,1708565445424,-500.0,0.0003589,2]
[314813765,1708565445439,-500.0,0.0003589,2]
[314813768,1708565445454,-500.0,0.0003589,2]
[314813770,1708565445468,-374.39556894,0.0003589,2]
[314813772,1708565445483,-827.66,0.0003589,2]
[314813773,1708565445498,-2033.29,0.0003589,2]
[314813774,1708565445514,-500.0,0.0003589,2]
[314813775,1708565445528,-500.0,0.0003589,2]
[314813776,1708565445542,-512.03993726,0.0003589,2]
[314813777,1708565445559,-1000.0,0.0003589,2]
[314813778,1708565445573,-500.0,0.0003589,2]
[314813779,1708565445587,-500.0,0.0003589,2]
[314813780,1708565445601,-246.51974225,0.0003589,2]
[314813781,1708565445616,-5671.83,0.0003589,2]
[314813782,1708565445630,-5046.63,0.0003589,2]
[314813783,1708565445645,-1082.11,0.0003589,2]
[314813784,1708565445666,-500.0,0.0003589,2]
[314813785,1708565445687,-500.0,0.0003589,2]
[314813786,1708565445707,-500.0,0.0003589,2]
[314813787,1708565445725,-500.0,0.0003589,2]
[314813788,1708565445744,-500.0,0.0003589,2]
[314813789,1708565445768,-5031.74,0.0003589,2]
[314813790,1708565445784,-523.8,0.0003589,2]
[314813791,1708565445800,-500.0,0.0003589,2]
[314813792,1708565445822,-522.73969351,0.0003589,2]
[314813793,1708565445838,-500.0,0.0003589,2]
[314813794,1708565445855,-500.0,0.0003589,2]
[314813795,1708565445870,-500.0,0.0003589,2]
[314813796,1708565445886,-723.91,0.0003589,2]
[314813797,1708565445902,-500.0,0.0003589,2]
[314813798,1708565445916,-500.0,0.0003589,2]
[314813799,1708565445931,-1121.81,0.0003589,2]
[314813800,1708565445946,-500.0,0.0003589,2]
[314813801,1708565445961,-500.0,0.0003589,2]
[314813802,1708565445976,-500.0,0.0003589,2]
[314813803,1708565445990,-500.0,0.0003589,2]
[314813804,1708565446005,-500.0,0.0003589,2]
[314813805,1708565446020,-11777.14,0.0003589,2]
[314813806,1708565446034,-1571.9,0.0003589,2]
[314813807,1708565446048,-47764.45,0.0003589,2]
[314813809,1708565446065,-1245.89,0.0003589,2]
[314813811,1708565446080,-500.0,0.0003589,2]
[314813812,1708565446094,-500.0,0.0003589,2]
[314813813,1708565446108,-549.23,0.0003589,2]
[314813814,1708565446124,-500.0,0.0003589,2]
[314813815,1708565446140,-500.0,0.0003589,2]
[314813816,1708565446155,-1300.92,0.0003589,2]
[314813817,1708565446171,-240.19,0.0003589,2]
[314813818,1708565446186,-500.0,0.0003589,2]
[314813819,1708565446200,-500.0,0.0003589,2]
[314813820,1708565446215,-500.0,0.0003589,2]
[314813821,1708565446229,-500.0,0.0003589,2]
[314813822,1708565446242,-3693.69,0.0003589,2]
[314813823,1708565446256,-500.0,0.0003589,2]
[314813824,1708565446270,-5029.76,0.0003589,2]
[314813825,1708565446284,-11041.85,0.0003589,2]
[314813826,1708565446298,-500.0,0.0003589,2]
[314813827,1708565446322,-1422.79,0.0003589,2]
[314813828,1708565446342,-2021.6,0.0003589,2]
[314813829,1708565446359,-500.0,0.0003589,2]
[314813830,1708565446377,-500.0,0.0003589,2]
[314813831,1708565446393,-500.0,0.0003589,2]
[314813832,1708565446408,-753.57,0.0003589,2]
[314813833,1708565446424,-733.87,0.0003589,2]
[314813834,1708565446441,-1285.45,0.0003589,2]
[314813835,1708565446456,-766.87,0.0003589,2]
[314813836,1708565446471,-500.0,0.0003589,2]
[314813837,1708565446486,-7947.62,0.0003589,2]
[314813838,1708565446501,-405.49083073,0.0003589,2]
[314813839,1708565446516,-500.0,0.0003589,2]
[314813840,1708565446529,-1185.96,0.0003589,2]
[314813841,1708565446545,-765.96,0.0003589,2]
[314813842,1708565446562,-500.0,0.0003589,2]
[314813843,1708565446576,-500.0,0.0003589,2]
[314813844,1708565446591,-2091.59,0.0003589,2]
[314813845,1708565446605,-2357.5,0.0003589,2]
[314813846,1708565446619,-13335.75,0.0003589,2]
[314813847,1708565446633,-500.0,0.0003589,2]
[314813848,1708565446646,-500.0,0.0003589,2]
[314813849,1708565446660,-882.0,0.0003589,2]
[314813850,1708565446674,-500.0,0.0003589,2]
[314813851,1708565446688,-3171.46,0.0003589,2]
[314813852,1708565446702,-795.08,0.0003589,2]
[314813853,1708565446717,-500.0,0.0003589,2]
[314813854,1708565446732,-500.0,0.0003589,2]
[314813855,1708565446746,-500.0,0.0003589,2]
[314813856,1708565446760,-500.0,0.0003589,2]
[314813857,1708565446775,-500.0,0.0003589,2]
[314813858,1708565446793,-500.0,0.0003589,2]
[314813859,1708565446810,-500.0,0.0003589,2]
[314813860,1708565446825,-500.0,0.0003589,2]
[314813861,1708565446839,-500.0,0.0003589,2]
[314813862,1708565446853,-2733.19,0.0003589,2]
[314813863,1708565446867,-500.0,0.0003589,2]
[314813864,1708565446882,-500.0,0.0003589,2]
[314813865,1708565446896,-11795.98,0.0003589,2]
[314813866,1708565446910,-500.0,0.0003589,2]
[314813867,1708565446923,-500.0,0.0003589,2]
[314813868,1708565446936,-958.42,0.0003589,2]
[314813869,1708565446951,-500.0,0.0003589,2]
[314813870,1708565446962,-500.0,0.0003589,2]
[314813871,1708565446971,-500.0,0.0003589,2]
[314813872,1708565446979,-500.0,0.0003589,2]
[314813873,1708565446988,-500.0,0.0003589,2]
[314813874,1708565446997,-500.0,0.0003589,2]
[314813875,1708565447006,-601.06,0.0003589,2]
[314813876,1708565447015,-16349.74,0.0003589,2]
[314813877,1708565447024,-1251.25,0.0003589,2]
[314813878,1708565447033,-2333.76,0.0003589,2]
[314813879,1708565447042,-500.0,0.0003589,2]
[314813880,1708565447051,-500.0,0.0003589,2]
[314813881,1708565447062,-2849.71,0.0003589,2]
[314813882,1708565447071,-500.0,0.0003589,2]
[314813883,1708565447080,-500.0,0.0003589,2]
[314813884,1708565447089,-500.0,0.0003589,2]
[314813885,1708565447098,-500.0,0.0003589,2]
[314813886,1708565447107,-500.0,0.0003589,2]
[314813887,1708565447116,-500.0,0.0003589,2]
[314813888,1708565447544,-500.0,0.0003589,2]
[314813889,1708565447577,-500.0,0.0003589,2]
[314813890,1708565447608,-500.0,0.0003589,2]
[314813891,1708565447626,-3210.66,0.0003589,2]
[314813892,1708565447635,-500.0,0.0003589,2]
[314813893,1708565447644,-335.51572087,0.0003589,2]
[314813894,1708565447652,-500.0,0.0003589,2]
[314813895,1708565447661,-500.0,0.0003589,2]
[314813896,1708565447670,-2295.49,0.0003589,2]
[314813897,1708565447679,-500.0,0.0003589,2]
[314813898,1708565447688,-500.0,0.0003589,2]
[314813899,1708565447697,-1825.08,0.0003589,2]
[314813900,1708565447705,-500.0,0.0003589,2]
[314813901,1708565447714,-797.92,0.0003589,2]
[314813902,1708565447748,-806.7,0.0003589,2]
[314813903,1708565447757,-500.0,0.0003589,2]
[314813904,1708565447767,-500.0,0.0003589,2]
[314813905,1708565447776,-648.19,0.0003589,2]
[314813906,1708565447786,-832.86,0.0003589,2]
[314813907,1708565447795,-500.0,0.0003589,2]
[314813908,1708565447806,-1574.9,0.0003589,2]
[314813909,1708565447816,-500.0,0.0003589,2]
[314813910,1708565447825,-980.27,0.0003589,2]
[314813911,1708565447834,-533.98,0.0003589,2]
[314813912,1708565447844,-500.0,0.0003589,2]
[314813913,1708565447852,-500.0,0.0003589,2]
[314813914,1708565447861,-500.0,0.0003589,2]
[314813915,1708565447870,-13066.06,0.0003589,2]
[314813916,1708565447879,-225.73357542,0.0003589,2]
[314813917,1708565447889,-1017.3,0.0003589,2]
[314813918,1708565447898,-500.0,0.0003589,2]
[314813919,1708565447907,-500.0,0.0003589,2]
[314813920,1708565447916,-500.0,0.0003589,2]
[314813921,1708565447925,-500.0,0.0003589,2]
[314813922,1708565447934,-521.34,0.0003589,2]
[314813923,1708565447942,-500.0,0.0003589,2]
[314813924,1708565447952,-1834.24,0.0003589,2]
[314813925,1708565447960,-1501.21,0.0003589,2]
[314813926,1708565447969,-660.15,0.0003589,2]
[314813927,1708565447978,-500.0,0.0003589,2]
[314813928,1708565447987,-500.0,0.0003589,2]
[314813929,1708565447995,-500.0,0.0003589,2]
[314813930,1708565448005,-2789.48,0.0003589,2]
[314813931,1708565448014,-500.0,0.0003589,2]